[Event "*** Titled Tuesday Blitz"]
[Site "Chess.com"]
[Date "2019.07.02"]
[Round "9"]
[White "AndrewMcStone"]
[Black "Orest_Vovk"]
[Result "0-1"]
[WhiteElo "2159"]
[BlackElo "2329"]
[TimeControl "180+2"]
[EndTime "15:00:22 PDT"]
[Termination "Orest_Vovk won by resignation"]

1. d4 {[%clk 0:03:01.9]} 1... h6 {[%clk 0:02:57.4]} 2. c4 {[%clk 0:03:02.4]}
2... g5 {[%clk 0:02:55.2]} 3. Nc3 {[%clk 0:03:03.6]} 3... Bg7 {[%clk 0:02:56.4]}
4. e3 {[%clk 0:03:00.4]} 4... c5 {[%clk 0:02:57.7]} 5. h4 {[%clk 0:02:42.7]}
5... d6 {[%clk 0:02:11.7]} 6. hxg5 {[%clk 0:02:41.3]} 6... Nc6 {[%clk
0:01:47.3]} 7. d5 {[%clk 0:02:39.3]} 7... Ne5 {[%clk 0:01:43.1]} 8. f4 {[%clk
0:02:23.5]} 8... Ng6 {[%clk 0:01:37.2]} 9. Bd3 {[%clk 0:02:04.9]} 9... hxg5
{[%clk 0:01:33.3]} 10. Rxh8 {[%clk 0:02:05.2]} 10... Bxh8 {[%clk 0:01:21.3]} 11.
Qh5 {[%clk 0:01:54]} 11... Bxc3+ {[%clk 0:01:19.1]} 12. bxc3 {[%clk 0:01:52.8]}
12... Qa5 {[%clk 0:01:13.9]} 13. Bxg6 {[%clk 0:01:11.6]} 13... Qxc3+ {[%clk
0:01:10.4]} 14. Kf2 {[%clk 0:01:09.9]} 14... Qxa1 {[%clk 0:00:48.6]} 15. Bxf7+
{[%clk 0:01:10.6]} 15... Kd8 {[%clk 0:00:49.2]} 16. Bxg8 {[%clk 0:01:10.4]}
16... Qxc1 {[%clk 0:00:48.5]} 17. Be6 {[%clk 0:00:48]} 17... Bxe6 {[%clk
0:00:34.1]} 18. Qh8+ {[%clk 0:00:45.8]} 18... Kc7 {[%clk 0:00:35.1]} 19. Qxa8
{[%clk 0:00:45.5]} 19... Qd2+ {[%clk 0:00:35]} 20. Ne2 {[%clk 0:00:45.4]} 20...
Bg4 {[%clk 0:00:35.2]} 21. Qh8 {[%clk 0:00:35.5]} 21... Qxe2+ {[%clk 0:00:35.4]}
22. Kg3 {[%clk 0:00:35.3]} 22... gxf4+ {[%clk 0:00:31.2]} 23. exf4 {[%clk
0:00:32.2]} 23... Bd7 {[%clk 0:00:31.9]} 24. Qa8 {[%clk 0:00:21.1]} 24... Qg4+
{[%clk 0:00:28.1]} 25. Kf2 {[%clk 0:00:21.5]} 25... Qxf4+ {[%clk 0:00:29]} 26.
Kg1 {[%clk 0:00:22.6]} 26... Qd4+ {[%clk 0:00:24.8]} 0-1

[Event "*** Titled Tuesday Blitz"]
[Site "Chess.com"]
[Date "2019.07.02"]
[Round "9"]
[White "Bryakin_Mikhail"]
[Black "Korchmar_Vasiliy"]
[Result "1-0"]
[WhiteElo "2688"]
[BlackElo "2745"]
[TimeControl "180+2"]
[EndTime "15:00:24 PDT"]
[Termination "Bryakin_Mikhail won on time"]

1. d4 {[%clk 0:02:55.7]} 1... Nf6 {[%clk 0:02:59.6]} 2. c4 {[%clk 0:02:55.6]}
2... g6 {[%clk 0:02:56]} 3. Nc3 {[%clk 0:02:54.8]} 3... d5 {[%clk 0:02:56.8]} 4.
Bg5 {[%clk 0:02:55.6]} 4... Ne4 {[%clk 0:02:43.7]} 5. Bh4 {[%clk 0:02:56.8]}
5... Nxc3 {[%clk 0:02:44.3]} 6. bxc3 {[%clk 0:02:58.7]} 6... dxc4 {[%clk
0:02:45]} 7. e3 {[%clk 0:03:00.2]} 7... Be6 {[%clk 0:02:44.8]} 8. Nf3 {[%clk
0:03:00.9]} 8... Bg7 {[%clk 0:02:39.6]} 9. Qb1 {[%clk 0:03:02.3]} 9... O-O
{[%clk 0:02:09.7]} 10. Be2 {[%clk 0:03:03.1]} 10... Nd7 {[%clk 0:01:56.8]} 11.
O-O {[%clk 0:03:02.5]} 11... Nb6 {[%clk 0:01:57.2]} 12. a4 {[%clk 0:03:03]}
12... a5 {[%clk 0:01:57.7]} 13. Rd1 {[%clk 0:03:02.9]} 13... Bd7 {[%clk
0:01:48]} 14. Nd2 {[%clk 0:02:50.1]} 14... Nxa4 {[%clk 0:01:42.9]} 15. Qc2
{[%clk 0:02:49]} 15... b5 {[%clk 0:01:43.7]} 16. Ne4 {[%clk 0:02:32.8]} 16...
Bf5 {[%clk 0:01:40.6]} 17. Bf3 {[%clk 0:02:33]} 17... h6 {[%clk 0:01:32.1]} 18.
g4 {[%clk 0:02:32.7]} 18... Bxe4 {[%clk 0:01:10.9]} 19. Bxe4 {[%clk 0:02:34.6]}
19... Rb8 {[%clk 0:01:12.3]} 20. Bc6 {[%clk 0:02:28.7]} 20... Qd6 {[%clk
0:01:02.7]} 21. Bxb5 {[%clk 0:02:25.5]} 21... Rxb5 {[%clk 0:00:51.4]} 22. Qxa4
{[%clk 0:02:22.4]} 22... Rfb8 {[%clk 0:00:12]} 23. Qxc4 {[%clk 0:02:21.6]} 23...
h5 {[%clk 0:00:13.5]} 24. h3 {[%clk 0:02:18]} 24... hxg4 {[%clk 0:00:13.8]} 25.
hxg4 {[%clk 0:02:19.9]} 25... Qd7 {[%clk 0:00:14.7]} 26. Qe2 {[%clk 0:02:15.5]}
26... Rb2 {[%clk 0:00:14.8]} 27. Qf3 {[%clk 0:02:17]} 27... a4 {[%clk
0:00:16.1]} 28. Bg3 {[%clk 0:02:14.8]} 28... R2b3 {[%clk 0:00:10.3]} 29. Rdc1
{[%clk 0:02:15]} 29... a3 {[%clk 0:00:11]} 30. Kg2 {[%clk 0:02:16.3]} 30... Qb5
{[%clk 0:00:06.2]} 31. c4 {[%clk 0:02:14.6]} 31... Qa5 {[%clk 0:00:06.1]} 32.
Bf4 {[%clk 0:02:15.1]} 32... a2 {[%clk 0:00:05.8]} 33. Rc2 {[%clk 0:02:10.3]}
33... Rb2 {[%clk 0:00:06.4]} 34. Qe2 {[%clk 0:02:09.7]} 34... Qa3 {[%clk
0:00:05]} 35. Bxc7 {[%clk 0:02:06.6]} 35... Rxc2 {[%clk 0:00:03.2]} 36. Qxc2
{[%clk 0:02:08.5]} 36... Rb2 {[%clk 0:00:04.8]} 37. Qe4 {[%clk 0:02:10]} 37...
e6 {[%clk 0:00:03.2]} 38. c5 {[%clk 0:01:59.4]} 38... Qa7 {[%clk 0:00:03.6]} 39.
Bf4 {[%clk 0:01:54]} 39... Qa3 {[%clk 0:00:02.2]} 40. c6 {[%clk 0:01:52.2]}
40... Qb3 {[%clk 0:00:02.9]} 41. c7 {[%clk 0:01:52.5]} 1-0

[Event "*** Titled Tuesday Blitz"]
[Site "Chess.com"]
[Date "2019.07.02"]
[Round "9"]
[White "Walter_White_Poland"]
[Black "ClockworkKubrick"]
[Result "1-0"]
[WhiteElo "2315"]
[BlackElo "2101"]
[TimeControl "180+2"]
[EndTime "15:00:28 PDT"]
[Termination "Walter_White_Poland won by checkmate"]

1. Nf3 {[%clk 0:03:01.3]} 1... d6 {[%clk 0:03:00.8]} 2. c4 {[%clk 0:02:52.1]}
2... Nf6 {[%clk 0:03:02.7]} 3. g3 {[%clk 0:02:52.1]} 3... g6 {[%clk 0:03:04.3]}
4. Bg2 {[%clk 0:02:53.2]} 4... Bg7 {[%clk 0:03:05.9]} 5. O-O {[%clk 0:02:54]}
5... O-O {[%clk 0:03:07.4]} 6. Nc3 {[%clk 0:02:55]} 6... e5 {[%clk 0:03:08.9]}
7. d3 {[%clk 0:02:55.3]} 7... Nc6 {[%clk 0:03:10.4]} 8. Bg5 {[%clk 0:02:55.3]}
8... h6 {[%clk 0:03:11]} 9. Bxf6 {[%clk 0:02:56]} 9... Qxf6 {[%clk 0:03:11.2]}
10. Nd5 {[%clk 0:02:55.3]} 10... Qd8 {[%clk 0:03:12.2]} 11. b4 {[%clk
0:02:56.1]} 11... Be6 {[%clk 0:03:13]} 12. b5 {[%clk 0:02:56]} 12... Ne7 {[%clk
0:03:14]} 13. Nxe7+ {[%clk 0:02:53.9]} 13... Qxe7 {[%clk 0:03:15.9]} 14. Nd2
{[%clk 0:02:52.5]} 14... Rab8 {[%clk 0:03:15.6]} 15. Rb1 {[%clk 0:02:52.2]}
15... f5 {[%clk 0:03:15.9]} 16. Qa4 {[%clk 0:02:35.6]} 16... e4 {[%clk
0:03:07.3]} 17. dxe4 {[%clk 0:02:31.4]} 17... fxe4 {[%clk 0:02:55.3]} 18. Nxe4
{[%clk 0:02:28]} 18... Bf5 {[%clk 0:02:51.7]} 19. f3 {[%clk 0:01:57.4]} 19...
Bd4+ {[%clk 0:02:51.3]} 20. Kh1 {[%clk 0:01:57.6]} 20... Bxe4 {[%clk 0:02:37.5]}
21. fxe4 {[%clk 0:01:58.1]} 21... Qe5 {[%clk 0:02:38.4]} 22. Qc2 {[%clk
0:01:47.6]} 22... h5 {[%clk 0:02:31.2]} 23. Qd3 {[%clk 0:01:24.9]} 23... Bc5
{[%clk 0:02:30.5]} 24. Rf3 {[%clk 0:01:14.3]} 24... Kg7 {[%clk 0:02:26.1]} 25.
Rbf1 {[%clk 0:01:14.4]} 25... Rbe8 {[%clk 0:01:53.7]} 26. Qd5 {[%clk 0:00:50.9]}
26... Rxf3 {[%clk 0:01:39.2]} 27. exf3 {[%clk 0:00:49.8]} 27... Re7 {[%clk
0:01:30.6]} 28. f4 {[%clk 0:00:21.5]} 28... Qb2 {[%clk 0:01:29.1]} 29. f5 {[%clk
0:00:18.9]} 29... gxf5 {[%clk 0:01:24.2]} 30. exf5 {[%clk 0:00:16.1]} 30... Kf6
{[%clk 0:01:22.9]} 31. Qg8 {[%clk 0:00:11.1]} 31... Qxa2 {[%clk 0:01:15]} 32.
Qg6+ {[%clk 0:00:07.9]} 32... Ke5 {[%clk 0:01:14.5]} 33. f6 {[%clk 0:00:07.6]}
33... Re8 {[%clk 0:01:11.7]} 34. Qe4# {[%clk 0:00:08.2]} 1-0

[Event "*** Titled Tuesday Blitz"]
[Site "Chess.com"]
[Date "2019.07.02"]
[Round "9"]
[White "HanSchut"]
[Black "VFernandezB"]
[Result "0-1"]
[WhiteElo "2204"]
[BlackElo "2347"]
[TimeControl "180+2"]
[EndTime "15:00:35 PDT"]
[Termination "VFernandezB won on time"]

1. e4 {[%clk 0:03:01.9]} 1... e6 {[%clk 0:02:57.9]} 2. d4 {[%clk 0:03:02.4]}
2... d5 {[%clk 0:02:57.3]} 3. Nd2 {[%clk 0:03:04]} 3... Be7 {[%clk 0:02:57.6]}
4. c3 {[%clk 0:03:00.3]} 4... c5 {[%clk 0:02:57.7]} 5. dxc5 {[%clk 0:03:00.2]}
5... Bxc5 {[%clk 0:02:56.2]} 6. Qg4 {[%clk 0:02:44.6]} 6... g6 {[%clk
0:02:47.2]} 7. exd5 {[%clk 0:02:37.9]} 7... exd5 {[%clk 0:02:47.1]} 8. Qa4+
{[%clk 0:02:37.7]} 8... Nc6 {[%clk 0:02:48]} 9. Ngf3 {[%clk 0:02:35]} 9... Qb6
{[%clk 0:02:48]} 10. Nd4 {[%clk 0:02:28.4]} 10... Bd7 {[%clk 0:02:43.8]} 11.
Nxc6 {[%clk 0:01:55.5]} 11... Bxf2+ {[%clk 0:02:42.6]} 12. Kd1 {[%clk
0:01:52.3]} 12... Bxc6 {[%clk 0:02:43.4]} 13. Qf4 {[%clk 0:01:51.7]} 13... Qe3
{[%clk 0:02:38.2]} 14. Qxe3+ {[%clk 0:01:39.8]} 14... Bxe3 {[%clk 0:02:38.7]}
15. Bd3 {[%clk 0:01:38.4]} 15... O-O-O {[%clk 0:02:38.3]} 16. Re1 {[%clk
0:01:38.3]} 16... d4 {[%clk 0:02:39.5]} 17. cxd4 {[%clk 0:01:24.9]} 17... Bxd4
{[%clk 0:02:40.2]} 18. Be4 {[%clk 0:01:21.9]} 18... Bxe4 {[%clk 0:02:37.7]} 19.
Rxe4 {[%clk 0:01:23.8]} 19... f5 {[%clk 0:02:38.6]} 20. Re6 {[%clk 0:01:15.9]}
20... Nf6 {[%clk 0:02:39]} 21. Kc2 {[%clk 0:01:16.3]} 21... Nd5 {[%clk
0:02:38.9]} 22. Nb3 {[%clk 0:01:08]} 22... Bb6 {[%clk 0:02:39.3]} 23. Bg5 {[%clk
0:00:55]} 23... Rde8 {[%clk 0:02:39.7]} 24. Rae1 {[%clk 0:00:52.1]} 24... Kd7
{[%clk 0:02:33.1]} 25. Rxe8 {[%clk 0:00:43.9]} 25... Rxe8 {[%clk 0:02:33.2]} 26.
Rd1 {[%clk 0:00:45.4]} 26... Kc6 {[%clk 0:02:32.3]} 27. Kb1 {[%clk 0:00:21.5]}
27... Ne3 {[%clk 0:02:22.8]} 28. Rc1+ {[%clk 0:00:16.4]} 28... Kd7 {[%clk
0:02:22.4]} 29. Bxe3 {[%clk 0:00:11.5]} 29... Rxe3 {[%clk 0:02:22.1]} 30. Rd1+
{[%clk 0:00:09.9]} 30... Ke7 {[%clk 0:02:21.4]} 31. Nd2 {[%clk 0:00:10.2]} 31...
Re2 {[%clk 0:02:19.9]} 32. Nc4 {[%clk 0:00:08.3]} 32... Rxg2 {[%clk 0:02:20.1]}
33. Re1+ {[%clk 0:00:07.3]} 33... Kd7 {[%clk 0:02:19.5]} 34. Ne5+ {[%clk
0:00:07.9]} 34... Kc7 {[%clk 0:02:20.2]} 35. Rc1+ {[%clk 0:00:06.7]} 35... Kd6
{[%clk 0:02:20.1]} 36. Nf7+ {[%clk 0:00:07.9]} 36... Ke7 {[%clk 0:02:20.6]} 37.
Nh6 {[%clk 0:00:05.4]} 37... Rxh2 {[%clk 0:02:21]} 38. Ng8+ {[%clk 0:00:06.8]}
38... Ke6 {[%clk 0:02:21.1]} 39. Rc8 {[%clk 0:00:05.8]} 39... Bd4 {[%clk
0:02:20.2]} 40. b3 {[%clk 0:00:05.3]} 40... b5 {[%clk 0:02:19]} 41. Rd8 {[%clk
0:00:03.9]} 41... Be5 {[%clk 0:02:18.2]} 42. Re8+ {[%clk 0:00:04.7]} 42... Kd5
{[%clk 0:02:18]} 43. Ne7+ {[%clk 0:00:04.6]} 43... Kd6 {[%clk 0:02:15]} 44. Nc8+
{[%clk 0:00:04]} 44... Kd7 {[%clk 0:02:15.7]} 45. Rg8 {[%clk 0:00:05.3]} 45...
b4 {[%clk 0:02:12]} 46. Nxa7 {[%clk 0:00:05.8]} 46... Bc3 {[%clk 0:02:12.1]} 47.
Nb5 {[%clk 0:00:06.4]} 47... f4 {[%clk 0:02:11.5]} 48. Rf8 {[%clk 0:00:05.3]}
48... g5 {[%clk 0:02:12.1]} 49. Rf7+ {[%clk 0:00:03.1]} 49... Kc6 {[%clk
0:02:12.3]} 0-1

[Event "*** Titled Tuesday Blitz"]
[Site "Chess.com"]
[Date "2019.07.02"]
[Round "9"]
[White "tigra"]
[Black "Qvalda"]
[Result "1-0"]
[WhiteElo "2734"]
[BlackElo "2507"]
[TimeControl "180+2"]
[EndTime "15:00:44 PDT"]
[Termination "tigra won on time"]

1. b4 {[%clk 0:03:01.9]} 1... d5 {[%clk 0:02:56.4]} 2. e3 {[%clk 0:03:01]} 2...
Qd6 {[%clk 0:02:57.2]} 3. a3 {[%clk 0:02:59.7]} 3... e5 {[%clk 0:02:57.8]} 4.
Bb2 {[%clk 0:02:57.9]} 4... Nf6 {[%clk 0:02:57.9]} 5. c4 {[%clk 0:02:56.3]} 5...
c6 {[%clk 0:02:54.8]} 6. Nf3 {[%clk 0:02:49.8]} 6... Nbd7 {[%clk 0:02:55.2]} 7.
Nc3 {[%clk 0:02:44.3]} 7... a6 {[%clk 0:02:45.1]} 8. Be2 {[%clk 0:02:41.4]} 8...
Be7 {[%clk 0:02:45.5]} 9. g4 {[%clk 0:02:23.1]} 9... O-O {[%clk 0:02:32.6]} 10.
g5 {[%clk 0:02:24.1]} 10... Ne4 {[%clk 0:02:33.7]} 11. Rg1 {[%clk 0:02:16]}
11... b5 {[%clk 0:02:21.9]} 12. Nxe4 {[%clk 0:02:14.9]} 12... dxe4 {[%clk
0:02:22]} 13. Nh4 {[%clk 0:02:16.8]} 13... g6 {[%clk 0:02:16.3]} 14. c5 {[%clk
0:02:15]} 14... Qd5 {[%clk 0:02:06.7]} 15. d3 {[%clk 0:02:10.8]} 15... exd3
{[%clk 0:01:53]} 16. Qxd3 {[%clk 0:02:09.6]} 16... Qxd3 {[%clk 0:01:33.4]} 17.
Bxd3 {[%clk 0:02:11.5]} 17... h6 {[%clk 0:01:33.3]} 18. O-O-O {[%clk 0:01:48.7]}
18... hxg5 {[%clk 0:01:32]} 19. Nf3 {[%clk 0:01:47.5]} 19... f5 {[%clk
0:00:58.7]} 20. Nxg5 {[%clk 0:01:41.1]} 20... e4 {[%clk 0:00:44.7]} 21. Nxe4
{[%clk 0:01:36.6]} 21... fxe4 {[%clk 0:00:42.2]} 22. Rxg6+ {[%clk 0:01:35.2]}
22... Kf7 {[%clk 0:00:39.4]} 23. Rg7+ {[%clk 0:01:36.1]} 23... Ke8 {[%clk
0:00:39.2]} 24. Bxe4 {[%clk 0:01:36.6]} 24... Rxf2 {[%clk 0:00:31.5]} 25. Bxc6
{[%clk 0:01:30]} 25... Rxb2 {[%clk 0:00:22]} 26. Rg8+ {[%clk 0:01:29.8]} 26...
Kf7 {[%clk 0:00:20.6]} 27. Bd5+ {[%clk 0:01:30]} 27... Kf6 {[%clk 0:00:19.6]}
28. Bxa8 {[%clk 0:01:27.6]} 28... Ra2 {[%clk 0:00:14]} 29. Rxc8 {[%clk
0:01:26.7]} 29... Ne5 {[%clk 0:00:14.9]} 30. Rf1+ {[%clk 0:01:25.2]} 30... Ke6
{[%clk 0:00:15]} 31. Rd1 {[%clk 0:01:18.4]} 31... Kf5 {[%clk 0:00:13.3]} 32. Bd5
{[%clk 0:01:14.1]} 32... Rxa3 {[%clk 0:00:12.2]} 33. Rf1+ {[%clk 0:01:14.9]}
33... Kg6 {[%clk 0:00:07.8]} 34. Rg8+ {[%clk 0:01:16.8]} 34... Kh7 {[%clk
0:00:08.8]} 35. Rf5 {[%clk 0:01:13.6]} 35... Nd3+ {[%clk 0:00:08.1]} 36. Kb1
{[%clk 0:01:12.9]} 36... Kh6 {[%clk 0:00:03.3]} 37. Bf7 {[%clk 0:01:12.3]} 1-0

[Event "*** Titled Tuesday Blitz"]
[Site "Chess.com"]
[Date "2019.07.02"]
[Round "9"]
[White "SavelievAlexei"]
[Black "Siniauski"]
[Result "1-0"]
[WhiteElo "2380"]
[BlackElo "2397"]
[TimeControl "180+2"]
[EndTime "15:00:48 PDT"]
[Termination "SavelievAlexei won on time"]

1. e4 {[%clk 0:03:01.9]} 1... e6 {[%clk 0:02:59]} 2. d4 {[%clk 0:03:02.7]} 2...
d5 {[%clk 0:02:59.9]} 3. Nc3 {[%clk 0:03:04.6]} 3... Nf6 {[%clk 0:02:59.5]} 4.
Bg5 {[%clk 0:03:03.6]} 4... Bb4 {[%clk 0:02:58.9]} 5. e5 {[%clk 0:03:03.2]} 5...
h6 {[%clk 0:02:59.4]} 6. Bd2 {[%clk 0:02:59.9]} 6... Bxc3 {[%clk 0:02:59.9]} 7.
bxc3 {[%clk 0:02:59.6]} 7... Ne4 {[%clk 0:03:01.3]} 8. Bd3 {[%clk 0:03:00.7]}
8... Nxd2 {[%clk 0:03:01.1]} 9. Qxd2 {[%clk 0:03:01.7]} 9... c5 {[%clk
0:03:02.2]} 10. f4 {[%clk 0:02:56.3]} 10... Nc6 {[%clk 0:03:02.2]} 11. Nf3
{[%clk 0:02:56.7]} 11... Qa5 {[%clk 0:02:59.1]} 12. c4 {[%clk 0:02:22.5]} 12...
Qxd2+ {[%clk 0:02:58.7]} 13. Kxd2 {[%clk 0:02:23.5]} 13... cxd4 {[%clk
0:02:54.1]} 14. cxd5 {[%clk 0:02:20.3]} 14... exd5 {[%clk 0:02:54.2]} 15. h3
{[%clk 0:02:20.9]} 15... O-O {[%clk 0:02:41.5]} 16. Rab1 {[%clk 0:02:21.7]}
16... f6 {[%clk 0:02:30.3]} 17. Rhe1 {[%clk 0:02:22.2]} 17... fxe5 {[%clk
0:02:27.1]} 18. fxe5 {[%clk 0:02:24.1]} 18... Be6 {[%clk 0:02:27.4]} 19. Rxb7
{[%clk 0:02:22.2]} 19... Bxh3 {[%clk 0:02:23.3]} 20. gxh3 {[%clk 0:02:16.1]}
20... Rxf3 {[%clk 0:02:23.8]} 21. e6 {[%clk 0:02:12.7]} 21... Rg3 {[%clk
0:01:35.8]} 22. h4 {[%clk 0:02:10.6]} 22... Re3 {[%clk 0:01:24.5]} 23. Rxe3
{[%clk 0:02:04.6]} 23... dxe3+ {[%clk 0:01:26.4]} 24. Kxe3 {[%clk 0:02:06.1]}
24... Nd8 {[%clk 0:01:16]} 25. Rd7 {[%clk 0:01:19.5]} 25... Nxe6 {[%clk
0:01:11.9]} 26. Rxd5 {[%clk 0:01:20.5]} 26... Kf7 {[%clk 0:01:13]} 27. Rf5+
{[%clk 0:01:19.7]} 27... Ke7 {[%clk 0:01:12.4]} 28. c4 {[%clk 0:01:19.8]} 28...
g5 {[%clk 0:01:04.7]} 29. h5 {[%clk 0:01:15.7]} 29... g4 {[%clk 0:01:01.6]} 30.
Re5 {[%clk 0:01:14.2]} 30... Kd6 {[%clk 0:00:35.3]} 31. Rd5+ {[%clk 0:01:13.3]}
31... Kc7 {[%clk 0:00:36.1]} 32. Bf5 {[%clk 0:01:11.6]} 32... Ng5 {[%clk
0:00:11.8]} 33. Bxg4 {[%clk 0:01:08.4]} 33... Re8+ {[%clk 0:00:11.8]} 34. Kd3
{[%clk 0:01:09.4]} 34... Kc6 {[%clk 0:00:11.7]} 35. Bd7+ {[%clk 0:01:05.6]} 1-0

[Event "*** Titled Tuesday Blitz"]
[Site "Chess.com"]
[Date "2019.07.02"]
[Round "9"]
[White "Rish_97"]
[Black "Fins0905"]
[Result "0-1"]
[WhiteElo "2554"]
[BlackElo "2732"]
[TimeControl "180+2"]
[EndTime "15:00:57 PDT"]
[Termination "Fins0905 won on time"]

1. e4 {[%clk 0:03:01.9]} 1... c5 {[%clk 0:03:00.3]} 2. Nf3 {[%clk 0:03:03]} 2...
e6 {[%clk 0:03:00.9]} 3. d4 {[%clk 0:02:55.2]} 3... cxd4 {[%clk 0:03:02.8]} 4.
Nxd4 {[%clk 0:02:57.1]} 4... a6 {[%clk 0:03:02.2]} 5. Nc3 {[%clk 0:02:54]} 5...
Qc7 {[%clk 0:03:02.9]} 6. g3 {[%clk 0:02:53.5]} 6... Nf6 {[%clk 0:03:03.1]} 7.
Bg2 {[%clk 0:02:54.4]} 7... Bb4 {[%clk 0:03:04.3]} 8. O-O {[%clk 0:02:51.2]}
8... O-O {[%clk 0:03:02.4]} 9. f4 {[%clk 0:02:27.5]} 9... d6 {[%clk 0:02:53.3]}
10. Nb3 {[%clk 0:01:52.9]} 10... Nbd7 {[%clk 0:02:48.6]} 11. Bd2 {[%clk
0:01:50.5]} 11... Rb8 {[%clk 0:02:34.5]} 12. Kh1 {[%clk 0:01:47.9]} 12... Nc5
{[%clk 0:02:25.9]} 13. a3 {[%clk 0:01:26.6]} 13... Bxc3 {[%clk 0:02:20.8]} 14.
Bxc3 {[%clk 0:01:27.3]} 14... Ncxe4 {[%clk 0:02:21.3]} 15. Bb4 {[%clk
0:01:20.9]} 15... b6 {[%clk 0:02:12.2]} 16. g4 {[%clk 0:01:19.9]} 16... Bb7
{[%clk 0:02:05.3]} 17. g5 {[%clk 0:01:21.1]} 17... Nd7 {[%clk 0:02:02.1]} 18. f5
{[%clk 0:01:11.4]} 18... exf5 {[%clk 0:01:49.6]} 19. Rxf5 {[%clk 0:01:08.3]}
19... Ndc5 {[%clk 0:01:48.2]} 20. Nd4 {[%clk 0:01:03.3]} 20... Rbe8 {[%clk
0:01:44.1]} 21. Qg1 {[%clk 0:00:49.7]} 21... Qd7 {[%clk 0:01:27.4]} 22. Raf1
{[%clk 0:00:47.2]} 22... g6 {[%clk 0:01:19]} 23. R5f4 {[%clk 0:00:37.8]} 23...
Nxg5 {[%clk 0:00:59.2]} 24. Nf5 {[%clk 0:00:25.6]} 24... gxf5 {[%clk 0:00:35.5]}
25. Rxf5 {[%clk 0:00:25.6]} 25... f6 {[%clk 0:00:26.7]} 26. h4 {[%clk
0:00:26.3]} 26... Re5 {[%clk 0:00:22.3]} 0-1

[Event "*** Titled Tuesday Blitz"]
[Site "Chess.com"]
[Date "2019.07.02"]
[Round "9"]
[White "juniortay"]
[Black "Sajkochess"]
[Result "1/2-1/2"]
[WhiteElo "2424"]
[BlackElo "2239"]
[TimeControl "180+2"]
[EndTime "15:01:00 PDT"]
[Termination "Game drawn by repetition"]

1. e4 {[%clk 0:03:01.9]} 1... d6 {[%clk 0:02:59.2]} 2. d4 {[%clk 0:03:02.3]}
2... Nf6 {[%clk 0:03:00.2]} 3. Nc3 {[%clk 0:03:04.2]} 3... g6 {[%clk 0:03:01.1]}
4. Nf3 {[%clk 0:03:05.7]} 4... Bg7 {[%clk 0:03:02.5]} 5. h3 {[%clk 0:03:07.3]}
5... O-O {[%clk 0:03:01.3]} 6. Be3 {[%clk 0:03:08.7]} 6... c6 {[%clk 0:03:00]}
7. a4 {[%clk 0:03:09.7]} 7... Qa5 {[%clk 0:02:52.3]} 8. Qd2 {[%clk 0:03:08.7]}
8... b5 {[%clk 0:02:51.2]} 9. b4 {[%clk 0:03:07.5]} 9... Qxb4 {[%clk 0:02:44.2]}
10. Rb1 {[%clk 0:03:08.4]} 10... Qa5 {[%clk 0:02:37.8]} 11. axb5 {[%clk
0:03:09.4]} 11... Bd7 {[%clk 0:02:16.3]} 12. Be2 {[%clk 0:02:55.1]} 12... cxb5
{[%clk 0:02:11.7]} 13. Bxb5 {[%clk 0:02:52.8]} 13... Rc8 {[%clk 0:02:04.6]} 14.
Bxd7 {[%clk 0:02:09.6]} 14... Nbxd7 {[%clk 0:02:02.8]} 15. Rb3 {[%clk
0:02:10.9]} 15... Qa1+ {[%clk 0:01:23.8]} 16. Qc1 {[%clk 0:02:10.3]} 16... Qa6
{[%clk 0:01:07.9]} 17. Ra3 {[%clk 0:01:48.2]} 17... Qc4 {[%clk 0:01:00.8]} 18.
Nd2 {[%clk 0:01:49.2]} 18... Qb4 {[%clk 0:01:01.1]} 19. Rb3 {[%clk 0:01:39.1]}
19... Qa5 {[%clk 0:00:52.7]} 20. Qa3 {[%clk 0:01:40.1]} 20... Qxa3 {[%clk
0:00:33.9]} 21. Rxa3 {[%clk 0:01:42]} 21... Rc7 {[%clk 0:00:35]} 22. Ke2 {[%clk
0:01:40.3]} 22... Rac8 {[%clk 0:00:35.8]} 23. Kd3 {[%clk 0:01:41.6]} 23... e5
{[%clk 0:00:33.3]} 24. Rha1 {[%clk 0:01:38.2]} 24... exd4 {[%clk 0:00:33.5]} 25.
Bxd4 {[%clk 0:01:39.7]} 25... Ne5+ {[%clk 0:00:32.5]} 26. Bxe5 {[%clk
0:01:40.4]} 26... dxe5 {[%clk 0:00:32.8]} 27. Rb3 {[%clk 0:01:32.5]} 27... Bf8
{[%clk 0:00:28.5]} 28. Nd5 {[%clk 0:01:15.8]} 28... Nxd5 {[%clk 0:00:27.6]} 29.
exd5 {[%clk 0:01:16.4]} 29... Rxc2 {[%clk 0:00:27.7]} 30. Rxa7 {[%clk
0:01:17.1]} 30... f5 {[%clk 0:00:25.1]} 31. f3 {[%clk 0:01:02.2]} 31... Bh6
{[%clk 0:00:22.8]} 32. Nb1 {[%clk 0:00:53.4]} 32... R2c5 {[%clk 0:00:20.9]} 33.
Rbb7 {[%clk 0:00:48.2]} 33... Rxd5+ {[%clk 0:00:21.5]} 34. Ke2 {[%clk 0:00:45]}
34... Rc2+ {[%clk 0:00:21.5]} 35. Ke1 {[%clk 0:00:46.4]} 35... Rc1+ {[%clk
0:00:22.3]} 36. Ke2 {[%clk 0:00:46.5]} 36... Rc2+ {[%clk 0:00:22.9]} 37. Ke1
{[%clk 0:00:45.3]} 37... Rc1+ {[%clk 0:00:21.6]} 38. Ke2 {[%clk 0:00:45.9]}
38... Rc2+ {[%clk 0:00:17.5]} 1/2-1/2